fUSD/lending_fUSD_20250312
["ID","MTS","AMOUNT","RATE_DAILY","PERIOD"]
[355975702,1741752642210,-500.0,9.999e-05,2]
[355975703,1741752642219,-510.44,9.999e-05,2]
[355975704,1741752642229,-500.0,9.999e-05,2]
[355975705,1741752642238,-612.58,9.999e-05,2]
[355975706,1741752642247,-500.0,9.999e-05,2]
[355975707,1741752642257,-870.67,9.999e-05,2]
[355975708,1741752642268,-500.0,9.999e-05,2]
[355975709,1741752642277,-500.0,9.999e-05,2]
[355975710,1741752642287,-500.0,9.999e-05,2]
[355975711,1741752642297,-500.0,9.999e-05,2]
[355975712,1741752642306,-698.49,9.999e-05,2]
[355975713,1741752642316,-805.55,9.999e-05,2]
[355975714,1741752642325,-500.0,9.999e-05,2]
[355975715,1741752642334,-500.0,9.999e-05,2]
[355975716,1741752642343,-1147.92,9.999e-05,2]
[355975717,1741752642352,-500.0,9.999e-05,2]
[355975718,1741752642361,-1963.56,9.999e-05,2]
[355975719,1741752642370,-500.0,9.999e-05,2]
[355975720,1741752642380,-500.0,9.999e-05,2]
[355975721,1741752642389,-1276.51,9.999e-05,2]
[355975722,1741752642399,-500.0,9.999e-05,2]
[355975723,1741752642408,-586.97,9.999e-05,2]
[355975724,1741752642417,-4878.73,9.999e-05,2]
[355975725,1741752642427,-500.0,9.999e-05,2]
[355975726,1741752642436,-1041.58,9.999e-05,2]
[355975727,1741752642445,-500.0,9.999e-05,2]
[355975729,1741752642454,-185.51644069,9.999e-05,2]
[355975731,1741752642464,-500.0,9.999e-05,2]
[355975733,1741752642472,-960.73,9.999e-05,2]
[355975735,1741752642482,-500.0,9.999e-05,2]
[355975737,1741752642491,-712.58,9.999e-05,2]
[355975739,1741752642501,-500.0,9.999e-05,2]
[355975741,1741752642511,-1689.64,9.999e-05,2]
[355975742,1741752642523,-528.28,9.999e-05,2]
[355975744,1741752642532,-500.0,9.999e-05,2]
[355975745,1741752642541,-1058.29,9.999e-05,2]
[355975746,1741752642550,-500.0,9.999e-05,2]
[355975747,1741752642559,-500.0,9.999e-05,2]
[355975748,1741752642568,-500.0,9.999e-05,2]
[355975749,1741752642577,-500.0,9.999e-05,2]
[355975750,1741752642587,-514.55,9.999e-05,2]
[355975752,1741752642598,-500.0,9.999e-05,2]
[355975754,1741752642607,-500.0,9.999e-05,2]
[355975756,1741752642616,-500.0,9.999e-05,2]
[355975757,1741752642625,-500.0,9.999e-05,2]
[355975758,1741752642634,-500.0,9.999e-05,2]
[355975759,1741752642643,-662.44,9.999e-05,2]
[355975760,1741752642652,-500.0,9.999e-05,2]
[355975762,1741752642662,-568.06,9.999e-05,2]
[355975763,1741752642671,-1121.92,9.999e-05,2]
[355975765,1741752642680,-500.0,9.999e-05,2]
[355975766,1741752642689,-500.0,9.999e-05,2]
[355975768,1741752642698,-704.0,9.999e-05,2]
[355975769,1741752642707,-500.0,9.999e-05,2]
[355975771,1741752642717,-712.53,9.999e-05,2]
[355975772,1741752642726,-528.03,9.999e-05,2]
[355975773,1741752642735,-500.0,9.999e-05,2]
[355975774,1741752642744,-500.0,9.999e-05,2]
[355975775,1741752642753,-500.0,9.999e-05,2]
[355975776,1741752642763,-905.94,9.999e-05,2]
[355975777,1741752642772,-500.0,9.999e-05,2]
[355975778,1741752642781,-500.0,9.999e-05,2]
[355975779,1741752642791,-1521.87,9.999e-05,2]
[355975780,1741752642800,-526.66,9.999e-05,2]
[355975781,1741752642809,-563.35,9.999e-05,2]
[355975782,1741752642818,-507.75460212,9.999e-05,2]
[355975783,1741752642827,-508.98,9.999e-05,2]
[355975784,1741752642836,-1642.44,9.999e-05,2]
[355975785,1741752642845,-500.0,9.999e-05,2]
[355975786,1741752642855,-500.0,9.999e-05,2]
[355975787,1741752642864,-508.00861287,9.999e-05,2]
[355975788,1741752642873,-7186.13,9.999e-05,2]
[355975789,1741752642882,-626.28,9.999e-05,2]
[355975790,1741752642891,-500.0,9.999e-05,2]
[355975791,1741752642900,-500.0,9.999e-05,2]
[355975792,1741752642909,-509.65749582,9.999e-05,2]
[355975793,1741752642919,-1410.93,9.999e-05,2]
[355975794,1741752642928,-500.0,9.999e-05,2]
[355975795,1741752642937,-504.85,9.999e-05,2]
[355975796,1741752642946,-1394.0,0.0001,2]
[355975797,1741752642955,-17033.69977162,0.0001,2]
[355975798,1741752642964,-1388209.08485126,0.0001,2]
[355975799,1741752642981,-424317.89549591,0.0001,2]
[355975800,1741752643012,-200379.89418333,0.0001,2]
[355975801,1741752643198,-6990.28467535,0.0001,5]
[355975802,1741752643243,-1000.0,0.0001,2]
[355975803,1741752643253,-1000.0,0.0001,2]
[355975804,1741752643262,-1000.0,0.0001,2]
[355975805,1741752643272,-1000.0,0.0001,2]
[355975806,1741752643282,-1000.0,0.0001,2]
[355975807,1741752643291,-1000.0,0.0001,2]
[355975808,1741752643300,-1000.0,0.0001,2]
[355975809,1741752643309,-1000.0,0.0001,2]
[355975810,1741752643319,-1000.0,0.0001,2]
[355975811,1741752643328,-1000.0,0.0001,2]
[355975812,1741752643338,-1000.0,0.0001,2]
[355975813,1741752643347,-1000.0,0.0001,2]
[355975814,1741752643356,-1000.0,0.0001,2]
[355975815,1741752643366,-1000.0,0.0001,2]
[355975816,1741752643375,-1000.0,0.0001,2]
[355975817,1741752643384,-1000.0,0.0001,2]
[355975818,1741752643394,-1000.0,0.0001,2]
[355975819,1741752643403,-1000.0,0.0001,2]
[355975820,1741752643412,-1000.0,0.0001,2]
[355975821,1741752643422,-1000.0,0.0001,2]
[355975822,1741752643431,-1000.0,0.0001,2]
[355975823,1741752643440,-698.46676438,0.0001,2]
[355975824,1741752643449,-801.08437143,0.0001,2]
[355975825,1741752643458,-73534.2265264,0.0001,2]
[355975826,1741752643470,-41626.79191419,0.0001,2]
[355975827,1741752643842,-500.0,9.998e-05,2]
[355975828,1741752643852,-721.29,0.0001,2]
[355975829,1741752643864,-975.23669814,0.0001,2]
[355975830,1741752643876,-3507.196489,0.0001,2]
[355975831,1741752644714,-329286.0000008,0.0001,2]
[355975832,1741752645758,-828.72,9.998e-05,2]
[355975833,1741752645768,-483.66370815,9.999e-05,2]
[355975834,1741752645778,-500.0,9.999e-05,2]
[355975835,1741752645787,-500.0,9.999e-05,2]
[355975837,1741752645796,-81.97757523,0.0001,2]
[355975838,1741752645810,-823.8,0.0001,2]
[355975839,1741752645970,-533.59496,0.0001,2]
[355975840,1741752645982,-1641.22,0.0001,2]
[355975841,1741752646077,-4064.83,0.0001,2]
[355975842,1741752646194,-783.45079787,0.0001,2]
[355975846,1741753006607,-176.49,9.043e-05,2]
[355975847,1741753032305,-150.0,9e-05,2]
[355975852,1741753558964,-262.89,9e-05,2]
[355975865,1741753814517,1119.72,8.219e-05,2]
[355975872,1741753832166,-137.11,9e-05,2]
[355975873,1741753832176,-396.87693558,9e-05,2]
[355975874,1741753832186,-333.8,9.043e-05,2]
[355975875,1741753832195,-1000.0,9.061e-05,2]
[355975876,1741753832205,-183.01,9.07e-05,2]
[355975877,1741753832214,-262.89,9.283e-05,2]
[355975878,1741753832223,-5000.0,9.899e-05,2]
[355975879,1741753832233,-1000.0,9.9e-05,2]
[355975880,1741753832242,-247.57259245,9.925e-05,2]
[355975881,1741753832251,-150.0,9.93e-05,2]
[355975883,1741753832261,-150.0,9.93e-05,2]
[355975885,1741753832270,-150.0,9.93e-05,2]
[355975887,1741753832280,-440.76,9.93e-05,2]
[355975889,1741753832289,-150.0,9.93e-05,2]
[355975891,1741753832298,-150.0,9.93e-05,2]
[355975893,1741753832307,-317.36,9.93e-05,2]
[355975895,1741753832316,-377.93,9.93e-05,2]
[355975896,1741753832325,-247.57259245,9.949e-05,2]
[355975897,1741753832335,-889.38,9.95e-05,2]
[355975898,1741753832344,-152.67,9.95e-05,2]
[355975899,1741753832354,-301.97,9.95e-05,2]
[355975900,1741753832364,-301.18,9.95e-05,2]
[355975902,1741753832374,-150.48,9.95e-05,2]
[355975904,1741753832383,-513.09,9.95e-05,2]
[355975906,1741753832393,-9762.37157453,9.964e-05,2]
[355975908,1741753832402,-100.20002896,9.968e-05,2]
[355975910,1741753832414,-3115.25403627,9.968e-05,2]
[355975912,1741753832423,-1212.9415,9.973e-05,2]
[355975914,1741753832433,-247.57259245,9.974e-05,2]
[355975916,1741753832442,-56.12608223,9.983e-05,2]
[355975919,1741753832459,-93.87391777,9.983e-05,2]
[355975921,1741753832468,-437.17967923,9.984e-05,2]
[355975923,1741753832480,-3494.82032077,9.984e-05,2]
[355975925,1741753832489,-150.0,9.984e-05,2]
[355975927,1741753832499,-2355.11291289,9.988e-05,2]
[355975929,1741753832511,-718.78087629,9.988e-05,2]
[355975932,1741753832530,-958.20385701,9.988e-05,2]
[355975934,1741753832541,-296.06898983,9.988e-05,2]
[355975936,1741753832559,-790.68631432,9.988e-05,2]
[355975937,1741753832568,-880.894,9.995e-05,2]
[355975938,1741753832578,-423.4156448,9.996e-05,2]
[355975939,1741753832587,-791.4814122,9.996e-05,2]
[355975940,1741753832597,-2302.37598052,9.996e-05,2]
[355975941,1741753832608,-6289.07,9.996e-05,2]
[355975942,1741753832619,-268.45881418,9.996e-05,2]
[355975943,1741753832629,-548.9612922,9.996e-05,2]
[355975944,1741753832639,-2254.28489362,9.996e-05,2]
[355975945,1741753832650,-2828.85670678,9.996e-05,2]
[355975946,1741753832659,-504.85,9.998e-05,2]
[355975947,1741753832668,-561.78,9.998e-05,2]
[355975948,1741753832677,-623.89,9.998e-05,2]
[355975949,1741753832686,-500.0,9.998e-05,2]
[355975950,1741753832695,-500.0,9.998e-05,2]
[355975951,1741753832705,-500.0,9.998e-05,2]
[355975952,1741753832714,-559.7,9.998e-05,2]
[355975953,1741753832723,-500.0,9.998e-05,2]
[355975954,1741753832732,-529.37,9.998e-05,2]
[355975955,1741753832741,-500.0,9.998e-05,2]
[355975956,1741753832751,-538.91,9.998e-05,2]
[355975957,1741753832760,-500.0,9.998e-05,2]
[355975958,1741753832770,-500.0,9.998e-05,2]
[355975959,1741753832779,-500.0,9.998e-05,2]
[355975960,1741753832788,-500.0,9.998e-05,2]
[355975961,1741753832797,-500.0,9.998e-05,2]
[355975962,1741753832806,-471.80564276,9.998e-05,2]
[355975963,1741753832816,-569.98,9.998e-05,2]
[355975964,1741753832825,-500.0,9.998e-05,2]
[355975965,1741753832834,-658.25,9.998e-05,2]
[355975966,1741753832843,-500.0,9.998e-05,2]
[355975967,1741753832853,-500.0,9.998e-05,2]
[355975968,1741753832863,-500.0,9.998e-05,2]
[355975969,1741753832872,-500.0,9.998e-05,2]
[355975970,1741753832884,-500.0,9.998e-05,2]
[355975971,1741753832894,-532.15,9.998e-05,2]
[355975972,1741753832903,-564.59,9.998e-05,2]
[355975973,1741753832913,-500.0,9.998e-05,2]
[355975974,1741753832923,-500.0,9.998e-05,2]
[355975975,1741753832932,-523.42,9.998e-05,2]
[355975976,1741753832941,-322.76512586,9.998e-05,2]
[355975977,1741753832962,-177.23487414,9.998e-05,2]
[355975978,1741753832971,-240.22503789,9.998e-05,2]
[355975979,1741753832983,-259.77496211,9.998e-05,2]
[355975980,1741753832992,-500.0,9.998e-05,2]
[355975981,1741753833004,-500.0,9.998e-05,2]
[355975982,1741753833013,-543.37751453,9.998e-05,2]
[355975983,1741753833023,-500.0,9.998e-05,2]
[355975984,1741753833032,-500.0,9.998e-05,2]
[355975985,1741753833041,-500.0,9.998e-05,2]
[355975986,1741753833052,-500.0,9.998e-05,2]
[355975987,1741753833062,-730.44,9.998e-05,2]
[355975988,1741753833072,-500.0,9.998e-05,2]
[355975989,1741753833081,-500.0,9.998e-05,2]
[355975990,1741753833091,-965.739411,9.998e-05,2]
[355975991,1741753833100,-672.87,9.998e-05,2]
[355975992,1741753833111,-500.0,9.998e-05,2]
[355975993,1741753833120,-500.0,9.998e-05,2]
[355975994,1741753833130,-643.35,9.998e-05,2]
[355975995,1741753833139,-586.26,9.998e-05,2]
[355975996,1741753833149,-500.0,9.998e-05,2]
[355975997,1741753833158,-500.0,9.998e-05,2]
[355975998,1741753833168,-150.942088,9.998e-05,2]
[355975999,1741753833177,-500.0,9.998e-05,2]
[355976000,1741753833187,-500.0,9.998e-05,2]
[355976001,1741753833197,-154.034078,9.998e-05,2]
[355976002,1741753833206,-519.77,9.998e-05,2]
[355976003,1741753833215,-530.74348226,9.998e-05,2]
[355976004,1741753833225,-620.37,9.998e-05,2]
[355976005,1741753833235,-153.003788,9.998e-05,2]
[355976006,1741753833246,-500.0,9.998e-05,2]
[355976007,1741753833256,-704.76,9.998e-05,2]
[355976008,1741753833266,-500.0,9.998e-05,2]
[355976009,1741753833276,-500.0,9.998e-05,2]
[355976010,1741753833286,-500.0,9.998e-05,2]
[355976011,1741753833295,-500.0,9.998e-05,2]
[355976012,1741753833305,-500.0,9.998e-05,2]
[355976013,1741753833315,-598.04,9.998e-05,2]
[355976014,1741753833324,-663.69,9.998e-05,2]
[355976015,1741753833334,-88.09239884,9.998e-05,2]
[355976016,1741753833347,-411.90760116,9.998e-05,2]
[355976017,1741753833358,-163.19698149,9.998e-05,2]
[355976018,1741753833377,-336.80301851,9.998e-05,2]
[355976019,1741753833387,-527.34,9.998e-05,2]
[355976020,1741753833397,-500.0,9.998e-05,2]
[355976021,1741753833407,-500.0,9.998e-05,2]
[355976022,1741753833416,-889.14,9.998e-05,2]
[355976023,1741753833426,-500.0,9.998e-05,2]
[355976024,1741753833436,-596.06,9.998e-05,2]
[355976025,1741753833446,-500.0,9.998e-05,2]
[355976026,1741753833456,-549.69565729,9.998e-05,2]
[355976027,1741753833468,-162.40434271,9.998e-05,2]
[355976028,1741753833478,-560.33,9.998e-05,2]
[355976029,1741753833488,-657.74,9.998e-05,2]
[355976030,1741753833498,-500.0,9.998e-05,2]
[355976031,1741753833508,-152.92518429,9.998e-05,2]
[355976032,1741753833520,-322.26793109,9.998e-05,2]
[355976033,1741753833532,-154.91688462,9.998e-05,2]
[355976034,1741753833542,-500.0,9.998e-05,2]
[355976035,1741753833551,-624.68,9.998e-05,2]
[355976036,1741753833561,-154.64925496,9.998e-05,2]
[355976037,1741753833573,-355.40074504,9.998e-05,2]
[355976038,1741753833582,-686.48,9.998e-05,2]
[355976039,1741753833591,-8.23249297,9.998e-05,2]
[355976040,1741753833602,-327.105009,9.998e-05,2]
[355976041,1741753833614,-202.12249803,9.998e-05,2]
[355976042,1741753833624,-500.0,9.998e-05,2]
[355976043,1741753833634,-500.0,9.998e-05,2]
[355976044,1741753833643,-14415.15750197,9.998e-05,2]
[355976045,1741753833654,-955.26651906,9.998e-05,2]
[355976053,1741753837893,-2814.15464849,9.998e-05,2]
[355976054,1741753837953,-3053.27463087,9.998e-05,2]
[355976055,1741753837963,-500.0,9.998e-05,2]
[355976056,1741753837974,-500.0,9.998e-05,2]
[355976057,1741753837983,-500.0,9.998e-05,2]
[355976058,1741753837992,-562.28,9.998e-05,2]
[355976059,1741753838002,-1313.21,9.998e-05,2]
[355976060,1741753838011,-711.1,9.998e-05,2]
[355976061,1741753838020,-671.99,9.998e-05,2]
[355976062,1741753838029,-500.0,9.998e-05,2]
[355976063,1741753838038,-207.26515913,9.998e-05,2]
[355976079,1741753838339,-292.73484087,9.998e-05,2]
[355976080,1741753838348,-210.27689346,9.998e-05,2]
[355976084,1741753838378,-1110.61310654,9.998e-05,2]
[355976086,1741753838388,-500.0,9.998e-05,2]
[355976088,1741753838398,-500.0,9.998e-05,2]
[355976090,1741753838408,-1668.38689346,9.998e-05,2]
[355976092,1741753838426,-404.42310654,9.998e-05,2]
[355976093,1741753838436,-500.0,9.998e-05,2]
[355976094,1741753838445,-500.0,9.998e-05,2]
[355976095,1741753838455,-275.93794548,9.998e-05,2]
[355976096,1741753838466,-978.53,9.998e-05,2]
[355976097,1741753838476,-500.0,9.998e-05,2]
[355976098,1741753838486,-2304.47779981,9.998e-05,2]
[355976100,1741753840054,-5000.0,9.899e-05,2]
[355976101,1741753840064,-1394.26220019,9.998e-05,2]
[355976102,1741753840073,-500.0,9.998e-05,2]
[355976103,1741753840083,-1394.31,9.998e-05,2]
[355976104,1741753840092,-500.0,9.998e-05,2]
[355976105,1741753840102,-611.89,9.998e-05,2]
[355976106,1741753840111,-1864.73,9.998e-05,2]
[355976107,1741753840124,-538.73,9.998e-05,2]
[355976108,1741753840134,-1121.24,9.998e-05,2]
[355976109,1741753840143,-892.31,9.998e-05,2]
[355976110,1741753840153,-500.0,9.998e-05,2]
[355976111,1741753840163,-500.0,9.998e-05,2]
[355976112,1741753840172,-506.69,9.998e-05,2]
[355976113,1741753840182,-500.0,9.998e-05,2]
[355976114,1741753840194,-500.0,9.998e-05,2]
[355976115,1741753840204,-500.0,9.998e-05,2]
[355976116,1741753840215,-1143.28,9.998e-05,2]
[355976117,1741753840226,-777.51,9.998e-05,2]
[355976118,1741753840235,-1127.69,9.998e-05,2]
[355976119,1741753840244,-702.19,9.998e-05,2]
[355976120,1741753840253,-500.0,9.998e-05,2]
[355976121,1741753840262,-500.0,9.998e-05,2]
[355976122,1741753840271,-288.40931397,9.998e-05,2]
[355976123,1741753840280,-1068.51,9.998e-05,2]
[355976124,1741753840289,-1519.61,9.998e-05,2]
[355976125,1741753840298,-500.0,9.998e-05,2]
[355976126,1741753840307,-614.02,9.998e-05,2]
[355976127,1741753840315,-500.0,9.998e-05,2]
[355976128,1741753840324,-525.54,9.998e-05,2]
[355976129,1741753840334,-500.0,9.998e-05,2]
[355976130,1741753840342,-500.0,9.998e-05,2]
[355976131,1741753840351,-500.0,9.998e-05,2]
[355976132,1741753840360,-500.0,9.998e-05,2]
[355976133,1741753840371,-508.88,9.998e-05,2]
[355976134,1741753840380,-500.0,9.998e-05,2]
[355976135,1741753840390,-500.0,9.998e-05,2]
[355976136,1741753840399,-500.0,9.998e-05,2]
[355976137,1741753840409,-607.79,9.998e-05,2]
[355976138,1741753840419,-500.0,9.998e-05,2]
[355976139,1741753840428,-510.44,9.998e-05,2]
[355976140,1741753840438,-1260.73,9.998e-05,2]
[355976141,1741753840448,-771.98,9.998e-05,2]
[355976142,1741753840465,-2154.58,9.998e-05,2]
[355976143,1741753840475,-559.43,9.998e-05,2]
[355976144,1741753840484,-1963.56,9.998e-05,2]
[355976146,1741753840493,-500.0,9.998e-05,2]
[355976147,1741753840503,-698.49,9.998e-05,2]
[355976149,1741753840512,-700.98,9.998e-05,2]
[355976151,1741753840521,-185.51644069,9.998e-05,2]
[355976153,1741753840531,-4878.73,9.998e-05,2]
[355976155,1741753840540,-500.0,9.998e-05,2]
[355976157,1741753840549,-533.35,9.998e-05,2]
[355976159,1741753840559,-816.75,9.998e-05,2]
[355976161,1741753840568,-1362.66,9.998e-05,2]
[355976163,1741753840578,-1689.64,9.998e-05,2]
[355976165,1741753840588,-876.95,9.998e-05,2]
[355976167,1741753840597,-960.73,9.998e-05,2]
[355976169,1741753840607,-500.0,9.998e-05,2]
[355976170,1741753840618,-1453.83,9.998e-05,2]
[355976172,1741753840628,-1100.47,9.998e-05,2]
[355976173,1741753840637,-500.0,9.998e-05,2]
[355976174,1741753840647,-1922.09,9.998e-05,2]
[355976176,1741753840656,-500.0,9.998e-05,2]
[355976177,1741753840665,-500.0,9.998e-05,2]
[355976178,1741753840674,-535.78,9.998e-05,2]
[355976179,1741753840684,-506.89,9.998e-05,2]
[355976180,1741753840693,-2453.82,9.998e-05,2]
[355976181,1741753840702,-568.06,9.998e-05,2]
[355976182,1741753840711,-500.0,9.998e-05,2]
[355976183,1741753840720,-621.37,9.998e-05,2]
[355976184,1741753840730,-500.0,9.998e-05,2]
[355976185,1741753840739,-1788.18,9.998e-05,2]
[355976186,1741753840748,-500.0,9.998e-05,2]
[355976187,1741753840757,-991.32,9.998e-05,2]
[355976188,1741753840766,-500.0,9.998e-05,2]
[355976189,1741753840775,-1020.53,9.998e-05,2]
[355976190,1741753840785,-500.0,9.998e-05,2]
[355976191,1741753840794,-2087.97,9.998e-05,2]
[355976192,1741753840803,-662.44,9.998e-05,2]
[355976193,1741753840812,-500.0,9.998e-05,2]
[355976194,1741753840822,-4058.52,9.998e-05,2]
[355976195,1741753840831,-702.72,9.998e-05,2]
[355976196,1741753840841,-704.0,9.998e-05,2]
[355976197,1741753840852,-500.0,9.998e-05,2]
[355976198,1741753840862,-500.0,9.998e-05,2]
[355976199,1741753840872,-500.0,9.998e-05,2]
[355976200,1741753840882,-1313.0,9.998e-05,2]
[355976201,1741753840895,-556.87,9.998e-05,2]
[355976202,1741753840904,-500.0,9.998e-05,2]
[355976203,1741753840913,-593.77,9.998e-05,2]
[355976204,1741753840922,-622.98,9.998e-05,2]
[355976205,1741753840932,-500.0,9.998e-05,2]
[355976206,1741753840941,-500.0,9.998e-05,2]
[355976207,1741753840950,-905.94,9.998e-05,2]
[355976208,1741753840960,-1793.48,9.998e-05,2]
[355976209,1741753840970,-526.66,9.998e-05,2]
[355976210,1741753840980,-1204.51,9.998e-05,2]
[355976211,1741753840989,-786.47,9.998e-05,2]
[355976212,1741753840998,-528.03,9.998e-05,2]
[355976213,1741753841007,-1225.25,9.998e-05,2]
[355976214,1741753841016,-1521.87,9.998e-05,2]
[355976215,1741753841025,-500.0,9.998e-05,2]
[355976216,1741753841034,-825.63,9.998e-05,2]
[355976217,1741753841043,-1642.44,9.998e-05,2]
[355976218,1741753841052,-701.59,9.998e-05,2]
[355976219,1741753841062,-626.28,9.998e-05,2]
[355976220,1741753841070,-794.19,9.998e-05,2]
[355976221,1741753841079,-705.53,9.998e-05,2]
[355976222,1741753841088,-7186.13,9.998e-05,2]
[355976223,1741753841097,-2534.03,9.998e-05,2]
[355976224,1741753841106,-500.0,9.998e-05,2]
[355976225,1741753841116,-1047.41,9.998e-05,2]
[355976226,1741753841125,-1163.94,9.998e-05,2]
[355976227,1741753841133,-500.0,9.998e-05,2]
[355976228,1741753841143,-500.0,9.998e-05,2]
[355976229,1741753841151,-709.79,9.998e-05,2]
[355976230,1741753841160,-1410.93,9.998e-05,2]
[355976231,1741753841170,-504.27517875,9.998e-05,2]
[355976232,1741753841180,-584.35,9.998e-05,2]
[355976233,1741753841190,-500.0,9.998e-05,2]
[355976234,1741753841200,-762.74,9.998e-05,2]
[355976235,1741753841210,-500.0,9.998e-05,2]
[355976236,1741753841219,-500.0,9.998e-05,2]
[355976237,1741753841228,-500.0,9.998e-05,2]
[355976238,1741753841237,-558.88582253,9.998e-05,2]
[355976239,1741753841247,-500.0,9.998e-05,2]
[355976240,1741753841256,-500.0,9.998e-05,2]
[355976241,1741753841266,-1123.01,9.998e-05,2]
[355976242,1741753841275,-500.0,9.998e-05,2]
[355976243,1741753841285,-500.0,9.998e-05,2]
[355976244,1741753841294,-500.0,9.998e-05,2]
[355976245,1741753841304,-500.0,9.998e-05,2]
[355976246,1741753841313,-500.0,9.998e-05,2]
[355976247,1741753841323,-572.65,9.998e-05,2]
[355976248,1741753841332,-500.0,9.998e-05,2]
[355976249,1741753841342,-500.0,9.998e-05,2]
[355976250,1741753841351,-500.0,9.998e-05,2]
[355976251,1741753841360,-500.0,9.998e-05,2]
[355976252,1741753841373,-562.79,9.998e-05,2]
[355976253,1741753841383,-500.0,9.998e-05,2]
[355976254,1741753841392,-524.18148371,9.998e-05,2]
[355976255,1741753841404,-559.14,9.998e-05,2]
[355976256,1741753841415,-247.57259245,9.999e-05,2]
[355976257,1741753841424,-500.0,9.999e-05,2]
[355976258,1741753841434,-500.0,9.999e-05,2]
[355976259,1741753841444,-500.0,9.999e-05,2]
[355976260,1741753841454,-500.0,9.999e-05,2]
[355976261,1741753841464,-500.0,9.999e-05,2]
[355976262,1741753841474,-500.0,9.999e-05,2]
[355976263,1741753841483,-500.0,9.999e-05,2]
[355976264,1741753841493,-500.0,9.999e-05,2]
[355976265,1741753841502,-623.42146599,9.999e-05,2]
[355976266,1741753841511,-428.64032463,9.999e-05,2]
[355976267,1741753841520,-500.0,9.999e-05,2]
[355976268,1741753841530,-500.0,9.999e-05,2]
[355976269,1741753841539,-500.0,9.999e-05,2]
[355976270,1741753841549,-500.0,9.999e-05,2]
[355976271,1741753841558,-245.49971461,9.999e-05,2]
[355976272,1741753841567,-500.0,9.999e-05,2]
[355976273,1741753841577,-500.0,9.999e-05,2]
[355976274,1741753841586,-500.0,9.999e-05,2]
[355976275,1741753841595,-500.0,9.999e-05,2]
[355976276,1741753841605,-500.0,9.999e-05,2]
[355976277,1741753841614,-503.8,9.999e-05,2]
[355976278,1741753841625,-540.6,9.999e-05,2]
[355976279,1741753841635,-500.0,9.999e-05,2]
[355976280,1741753841644,-500.0,9.999e-05,2]
[355976281,1741753841653,-507.68,9.999e-05,2]
[355976282,1741753841663,-500.0,9.999e-05,2]
[355976283,1741753841672,-500.0,9.999e-05,2]
[355976284,1741753841681,-500.0,9.999e-05,2]
[355976285,1741753841690,-500.0,9.999e-05,2]
[355976286,1741753841699,-500.0,9.999e-05,2]
[355976287,1741753841708,-500.0,9.999e-05,2]
[355976288,1741753841717,-500.0,9.999e-05,2]
[355976289,1741753841726,-500.0,9.999e-05,2]
[355976290,1741753841735,-500.0,9.999e-05,2]
[355976291,1741753841744,-598.01,9.999e-05,2]
[355976292,1741753841753,-500.0,9.999e-05,2]
[355976293,1741753841762,-500.0,9.999e-05,2]
[355976294,1741753841771,-598.18,9.999e-05,2]
[355976295,1741753841781,-500.0,9.999e-05,2]
[355976296,1741753841790,-500.0,9.999e-05,2]
[355976297,1741753841799,-636.28,9.999e-05,2]
[355976298,1741753841808,-500.0,9.999e-05,2]
[355976299,1741753841817,-500.0,9.999e-05,2]
[355976300,1741753841826,-500.0,9.999e-05,2]
[355976301,1741753841836,-500.0,9.999e-05,2]
[355976302,1741753841845,-500.0,9.999e-05,2]
[355976303,1741753841854,-500.0,9.999e-05,2]
[355976304,1741753841864,-500.0,9.999e-05,2]
[355976305,1741753841876,-500.0,9.999e-05,2]
[355976306,1741753841886,-500.0,9.999e-05,2]
[355976307,1741753841898,-500.0,9.999e-05,2]
[355976308,1741753841907,-500.0,9.999e-05,2]
[355976309,1741753841916,-500.0,9.999e-05,2]
[355976310,1741753841925,-500.0,9.999e-05,2]
[355976311,1741753841935,-500.0,9.999e-05,2]
[355976312,1741753841944,-500.0,9.999e-05,2]